Cogmind - Beta 13 @@@ ROGUE MODE // 2024.05.17 @ 19:16:11 Player: Bace Troncons Result: Destroyed by Y-54 Guardian with Flak Gun Performance ------------- Evolutions (0) 0 Regions Visited (3) 600 Robots Destroyed (42) 210 Value Destroyed (833) 833 Prototype IDs (2) 40 Alien Tech Used (0) 0 Bonus (13) 13 TOTAL SCORE: 1696 Bonus ------- High Alert Combat Kills 13 Cogmind --------- Core Integrity 0/250 Matter 284/300 Energy 92/100 System Corruption 0% Temperature Cool (24) Movement Walking (122) Location -7/Recycling Parts ------- > --- POWER (1) -------- (None) > --- PROPULSION (2) --- Titanium-Compact Exoskeleton > --- UTILITY (2) ------ Armored Scrap Engine > --- WEAPON (2) ------- Heavy Assault Rifle Shotgun Accelerated Assault Con/G > --- INVENTORY (5) ---- Improved Sensor Array Improved Terrain Scanner Hacking Suite Hacking Suite Rocket Launcher Peak State ------------ > --- POWER ------------ Light Ion Engine > --- PROPULSION ------- Advanced Treads Medium Treads > --- UTILITY ---------- Armored Scrap Engine > --- WEAPON ----------- Heavy Assault Rifle Flak Cannon > --- INVENTORY -------- Improved Sensor Array Terrain Scanner Hacking Suite Hacking Suite Rocket Launcher [Rating: 32] Favorites ----------- Power Ion Engine Engine Ion Engine Power Core Light Nuclear Core Propulsion Light Treads Treads Light Treads Leg Constructs Utility High-capacity Storage Unit Device Structural Scanner Storage High-capacity Storage Unit Protection Light Armor Plating Weapon Heavy Assault Rifle Energy Gun Medium Laser Ballistic Gun Heavy Assault Rifle Ballistic Cannon Flak Cannon Launcher Rocket Launcher Build | -11 -10 -10 -7 ------- Run | Yrd Mat Sub Rec Slots Evolved . | . . . . Power . | . . . . Propulsion . | . . . . Utility . | . . . . Weapon . | . . . . Parts Attached 32 | 6 10 6 10 Power 4 | 1 1 1 1 Engine 3 | 1 . 1 1 Core 1 | . 1 . . Reactor . | . . . . Propulsion 6 | 2 . 1 3 Treads 6 | 2 . 1 3 Leg . | . . . . Wheel . | . . . . Hover . | . . . . Flight . | . . . . Utility 6 | 1 3 1 1 Device 2 | . 1 . 1 Storage 2 | 1 1 . . Processor . | . . . . Hackware . | . . . . Protection 2 | . 1 1 . Artifact . | . . . . Weapon 16 | 2 6 3 5 Energy Gun 3 | 2 1 . . Energy Cannon . | . . . . Ballistic Gun 9 | . 5 2 2 Ballistic Cannon 3 | . . 1 2 Launcher 1 | . . . 1 Special Weapon . | . . . . Impact Weapon . | . . . . Slashing Weapon . | . . . . Piercing Weapon . | . . . . Special Melee Weapon . | . . . . Unidentified Prototypes . | . . . . Parts Lost 9 | . 1 6 2 Power 2 | . . 2 . Propulsion 2 | . . 1 1 Utility 1 | . . 1 . Weapon 4 | . 1 2 1 Highest Loss Streak 5 | . 1 5 1 To Critical Strikes . | . . . . Average Slot Usage (%) 91 | . 96 99 73 Engine 9 | . 5 13 9 Core 3 | . 8 . . Treads 25 | . 28 27 20 Device 7 | . 9 . 13 Storage 10 | . 14 14 . Protection 5 | . 1 14 . Energy Gun 1 | . 3 . . Ballistic Gun 20 | . 23 21 15 Ballistic Cannon 5 | . . 6 12 Naked Turns . | . . . . Heaviest Build 55 | 12 54 55 13 Greatest Support 50 | 40 40 40 50 Greatest Overweight (x) 2 | . 1 2 . Average Overweight (x) . | . . 1 . Largest Inventory Capacity 20 | 8 20 20 20 Average Capacity 15 | 7 19 20 5 Most Carried 20 | 4 20 20 18 Average Carried 12 | 2 13 18 5 Final Capacity 20 | 8 20 20 5 Final Carried 20 | 3 20 19 5 Scrap Engine Consumption 45 | . . . 45 Constructs Created 2 | . . . 2 Constructs Modified 4 | . . . 4 Class Distribution -------------------- 86% | Mutant 13% | Construct Dominant Class ---------------- Mutant | -10/Materials Mutant | -10/Subcaves Construct | -7/Recycling Resources | -11 -10 -10 -7 ----------- Run | Yrd Mat Sub Rec Matter Collected 1309 | 229 266 245 569 Remotely . | . . . . Salvage Created 2121 | . 447 249 1425 Parts 91 | . 37 16 38 Haulers Intercepted . | . . . . Recyclers Shooed 6 | . . . 6 Parts Field Recycled . | . . . . Retrieved Matter . | . . . . Parts Self-Destructed 7 | . . 7 . Prevented . | . . . . Kills | -11 -10 -10 -7 ------- Run | Yrd Mat Sub Rec Combat Hostiles Destroyed 24 | . 12 10 2 Guns 21 | . 12 8 1 Cannons 3 | . . 2 1 Classes Destroyed 7 | . 5 1 1 Recycler 14 | . 1 . 13 Operator 2 | . 2 . . Watcher 2 | . 2 . . Swarmer 10 | . 6 4 . Grunt 6 | . 6 . . Sentry 2 | . . . 2 Subdweller 6 | . . 6 . Best Kill Streak 5 | . 5 4 5 Combat Bots Only 5 | . 5 4 1 Max Kills in Single Turn 2 | . 1 2 1 Gunslinging . | . . . . Exploded . | . . . . Melee . | . . . . Uniques/NPCs Destroyed . | . . . . Combat | -11 -10 -10 -7 -------- Run | Yrd Mat Sub Rec Hostile Shots Fired 319 | . 55 129 135 Missed 111 | . 19 45 47 Damage Taken 1969 | . 360 934 675 Core 255 | . 30 116 109 Absorbed by Shields . | . . . . Regen/Repaired (Parts) 84 | . . . 84 Core Remaining (%) 100 | 100 . . . Volleys Fired 150 | . 48 54 48 Largest 2 | . 2 2 2 Hottest 90 | . 90 69 67 Shots Fired 271 | . 85 90 96 Gun 208 | . 85 57 66 Cannon 62 | . . 33 29 Launcher 1 | . . . 1 Special . | . . . . Kinetic 233 | . 48 90 95 Thermal 30 | . 30 . . Explosive 1 | . . . 1 Electromagnetic 7 | . 7 . . Robot Hit Streak 20 | . 8 19 20 Robot Miss Streak 5 | . 5 4 5 Penetration Max . | . . . . Secondary Targets . | . . . . Shots Hit Robots 141 | . 45 34 62 Core Hits 89 | . 22 15 52 Critical Kills . | . . . . Critical Parts Destroyed . | . . . . Critical Strikes 4 | . 4 . . Burn 4 | . 4 . . Melee Attacks . | . . . . Impact . | . . . . Slashing . | . . . . Piercing . | . . . . Sneak Attacks . | . . . . Combat Hostiles . | . . . . Follow-up Attacks . | . . . . Damage Inflicted 2382 | . 622 647 1113 Guns 1729 | . 622 438 669 Cannons 653 | . . 209 444 Explosions . | . . . . Melee . | . . . . Ramming . | . . . . Kinetic 2100 | . 340 647 1113 Thermal 226 | . 226 . . Explosive . | . . . . Electromagnetic 56 | . 56 . . Impact . | . . . . Slashing . | . . . . Piercing . | . . . . Highest Corruption . | . . . . Average Corruption . | . . . . Corruption Purged . | . . . . Corruption Blocked . | . . . . Overload Shots . | . . . . Overflow Damage . | . . . . Projectiles . | . . . . Explosions . | . . . . Melee . | . . . . Knockbacks 9 | . . 3 6 Impact . | . . . . Kinetic 9 | . . 3 6 Secondary . | . . . . Self-Inflicted Damage 11 | . . . 11 Shots 1 | . . . 1 Rammed . | . . . . Targets Rammed . | . . . . Kicked . | . . . . Crushed . | . . . . Highest Temperature 182 | . 182 1 101 Average Temperature 37 | . 50 1 23 Received Heat Transfer 735 | . 144 381 210 Siege Activations . | . . . . Robots Corrupted . | . . . . Combat Hostiles . | . . . . Parts Fried . | . . . . Impact Corruptions . | . . . . Robots Melted . | . . . . Combat Hostiles . | . . . . Parts Melted 2 | . 2 . . Heat Transferred 939 | . 939 . . Parts Sabotaged . | . . . . Parts Stolen . | . . . . Parts Stripped . | . . . . Power Chain Reactions . | . . . . Alert | -11 -10 -10 -7 ------- Run | Yrd Mat Sub Rec Peak Influence 523 | . 150 . 523 Initial 482 | . . . 482 Average 163 | . 29 . 370 Maximum Alert Level 2 | . . . 2 Low Security (%) 64 | 100 100 . 9 Level 1 22 | . . . 57 Level 2 12 | . . . 32 Level 3 . | . . . . Level 4 . | . . . . Level 5 . | . . . . High Security . | . . . . Max Security . | . . . . Squads Dispatched 2 | . 2 . . Investigation . | . . . . Extermination . | . . . . Reinforcement 2 | . 2 . . Assault . | . . . . Garrison . | . . . . Intercept . | . . . . Searches Triggered . | . . . . Construction Impeded . | . . . . Haulers Reinforced . | . . . . Active Scanning Responses . | . . . . Cargo Convoy Interrupts . | . . . . Stealth | -11 -10 -10 -7 --------- Run | Yrd Mat Sub Rec Distress Signals 1 | . 1 . . Communications Jammed . | . . . . Distress Signals . | . . . . Times Spotted 71 | . 19 49 3 Peak Tracking Total 6 | . 6 6 1 Tactical Retreats 3 | . . 3 . Traps | -11 -10 -10 -7 ------- Run | Yrd Mat Sub Rec Traps Triggered . | . . . . Indirectly . | . . . . Trap Hack Attempts . | . . . . Triggered . | . . . . Disarmed . | . . . . Reprogrammed . | . . . . Reused . | . . . . Traps Extracted . | . . . . Installed . | . . . . Triggered . | . . . . Machines | -11 -10 -10 -7 ---------- Run | Yrd Mat Sub Rec Machines Disabled 3 | . 1 1 1 Max in Single Turn 1 | . 1 1 1 Machines Repaired . | . . . . Machines Dismantled . | . . . . Machines Sabotaged . | . . . . Overloaded Fab Kills . | . . . . Hacking | -11 -10 -10 -7 --------- Run | Yrd Mat Sub Rec Machines Accessed 8 | . 1 1 6 Terminals 3 | . 1 . 2 Fabricators . | . . . . Repair Stations . | . . . . Recycling Units 4 | . . . 4 Scanalyzers . | . . . . Garrison Access . | . . . . Total Hacks 17 | . 1 1 15 Successful 3 | . . 1 2 Failed 14 | . 1 . 13 Catastrophic 2 | . 1 . 1 Database Lockouts . | . . . . Manual . | . . . . Terminals 7 | . 1 . 6 Fabricators . | . . . . Repair Stations . | . . . . Recycling Units 9 | . . . 9 Scanalyzers . | . . . . Garrison Access . | . . . . Terminal Hacks 2 | . . 1 1 Record 1 | . . 1 . Transport Status 1 | . . . 1 Fabricator Hacks . | . . . . Repair Station Hacks . | . . . . Recycling Unit Hacks 1 | . . . 1 Retrieve Components 1 | . . . 1 Scanalyzer . | . . . . Garrison Access Hacks . | . . . . Unauthorized Hacks . | . . . . Terminals . | . . . . Fabricators . | . . . . Repair Stations . | . . . . Recycling Units . | . . . . Scanalyzers . | . . . . Garrison Access . | . . . . Data Cores Recovered . | . . . . Used . | . . . . Hacking Detections 7 | . 1 . 6 Full Trace Events . | . . . . Feedback Events . | . . . . Feedback Blocked . | . . . . Robot Schematics Acquired . | . . . . Robots Built . | . . . . Authchips . | . . . . Time . | . . . . Total Robot Build Rating . | . . . . Part Schematics Acquired . | . . . . Parts Built . | . . . . Authchips . | . . . . Time . | . . . . Total Part Build Rating . | . . . . Parts Repaired . | . . . . Time . | . . . . Parts Recycled . | . . . . Recycled Matter . | . . . . Retrieved Matter . | . . . . Retrieved Components 2 | . . . 2 Parts Scanalyzed . | . . . . Part Schematics Acquired . | . . . . Parts Damaged . | . . . . Bothacking | -11 -10 -10 -7 ------------ Run | Yrd Mat Sub Rec Used RIF Installer . | . . . . Robots Hacked . | . . . . Non-combat . | . . . . Combat . | . . . . Robot Hacks Applied . | . . . . Relay Couplers Released . | . . . . Fabnet Peak Effective % . | . . . . Robots Rewired . | . . . . Allies Hacked . | . . . . Hacks Repelled . | . . . . Allies | -11 -10 -10 -7 -------- Run | Yrd Mat Sub Rec Total Allies . | . . . . Largest Group . | . . . . Highest-Rated Group . | . . . . Highest-Rated Ally . | . . . . Total Orders . | . . . . Ally Attacks . | . . . . Total Damage . | . . . . Kills . | . . . . Allies Corrupted . | . . . . Allies Melted . | . . . . Intel | -11 -10 -10 -7 ------- Run | Yrd Mat Sub Rec Robot Analysis Total . | . . . . Derelict Logs Recovered 2 | . . 2 . Drone Launches . | . . . . Drone Recoveries . | . . . . Exploration | -11 -10 -10 -7 ------------- Run | Yrd Mat Sub Rec Turns Passed 5169 | 82 1951 1807 1329 Spaces Moved 1976 | 45 598 658 675 Core 1 | 1 . . . Treads 1957 | 44 598 658 657 Legs 16 | . . . 16 Wheels 2 | . . . 2 Hover . | . . . . Flight . | . . . . Fastest Speed 50 | 50 160 240 122 Average Speed 210 | 157 239 245 155 Slowest Speed 360 | 160 240 360 167 Overloaded Moves . | . . . . Propulsion Burnouts . | . . . . Robots Hopped . | . . . . Cave-ins Triggered . | . . . . Exploration Rate (%) 47 | 4 72 30 85 Regions Visited 3 Branch Regions 2 Pre-discovered Areas 2 | . . 2 . Known Exits Taken . | . . . . Unknown Exits Taken 3 | 1 1 1 . Scrap Searched 1 | . . 1 . Spaces Dug . | . . . . Terrain Destroyed 11 | . . . 11 Melee . | . . . . Projectile . | . . . . AOE 11 | . . . 11 Terrain Rammed . | . . . . Walls Destroyed . | . . . . Machines Disabled . | . . . . Actions | -11 -10 -10 -7 --------- Run | Yrd Mat Sub Rec Total 2724 | 54 1036 761 873 Wait 506 | . 353 39 114 Move 1973 | 44 597 657 675 Hop . | . . . . Pick Up 25 | 4 17 . 4 Fast Attach 14 | 5 5 2 2 Attach 8 | 1 1 2 4 Detach 7 | . 4 2 1 Swap 10 | . 4 2 4 Drop 31 | . 7 3 21 Fire 150 | . 48 54 48 Melee . | . . . . Ram . | . . . . Kick . | . . . . Crush . | . . . . Escape Stasis . | . . . . Rewire . | . . . . Trap . | . . . . Miscellaneous . | . . . . Route ------- -11/Scrapyard -10/Materials (discovered 5 exits: [*Mat x3] / [*Min] / *Sub) -10/Subcaves (discovered 2 exits: [*Mat] / *Rec) -7/Recycling History --------- Turn | Location | Event 29 | -11/Scrapyard | Discovered new exit (range 15) 83 | -11/Scrapyard | Entered Materials 317 | -10/Materials | Build established: Mutant 455 | -10/Materials | Discovered new exit (range 3) 758 | -10/Materials | Discovered new exit (range 4) 967 | -10/Materials | Discovered new exit (range 10) 1693 | -10/Materials | Discovered new exit (range 6) 1752 | -10/Materials | Discovered new exit (range 5) 2034 | -10/Materials | Entered Subcaves 2648 | -10/Subcaves | Learned location of Zion (-7) 2833 | -10/Subcaves | Learned Materials terminal intel 2963 | -10/Subcaves | Shifting Twisted Machinery released Battle Cannon 3022 | -10/Subcaves | A swath of the cavern ceiling suddenly collapsed 3088 | -10/Subcaves | Shifting Twisted Machinery released Spk. Treads 3225 | -10/Subcaves | Met a Zionite searching for "candidates" 3441 | -10/Subcaves | Visited Clippyterm 3634 | -10/Subcaves | Discovered new exit (range 9) 3815 | -10/Subcaves | Discovered new exit (range 8) 3830 | -10/Subcaves | Core integrity fell below 50% 3841 | -10/Subcaves | Entered Recycling 3852 | -7/Recycling | Found Scrap Engine 3860 | -7/Recycling | Lost 5 parts (1p1n1u2w) 4456 | -7/Recycling | Core integrity fell below 20% 4767 | -7/Recycling | Build established: Construct 5170 | -7/Recycling | Destroyed by Y-54 Guardian with Flak Gun Last Messages --------------- Max Integrity -63 Expanded to 2 slots (? T167 S30). 05003_ R-06 Scavenger destroyed. 05004_ Arm. Scrap Engine consumes Com. Wheel. 05006_ Acquired 9 matter. 05009_ Arm. Scrap Engine consumes Lgt. Ion Engine. 05026_ R-06 Scavenger collects Tractor Beam. 05058_ Scrap Engine modifies Treaded Gravmag-Spiked Exoskeleton: Move Heat -1, Time/Move -45, Support +4 Renamed Wheeled Compact-Spiked Exoskeleton. 05091_ Scrap Engine modifies Wheeled Compact-Spiked Exoskeleton: Heat -1, Max Integrity +119 Renamed Titanium-Compact Exoskeleton. 05160_ Y-54 Guardian springs to life. 05160_ Flak Cannon destroyed. 05161_ Arm. Scrap Engine constructs Shotgun Accelerated Assault Con/G. Map ----- +----------------------------------------------------+ | ??????????????????????????????????????? | | ??????????????????????????????????????? | | ??????????????????????????????????????? | | ??????????????????????????????????????? | | ??????????????????????????????????????? | | ??????????????????????????????????????? | | ??????????????????????????????????????? | | ??????????????????????????????????????? | | ??????????????????????????????????????? | | ??????????????????????????????????????? | | ??????????????????????? ????????????? | | ??????????????????????# #???????????? | | ??????????????????????# #?????###???? | | ??????????????????????# #??####%###?? | | ??????????????????????# #??# #?? | | ??????????????????????# #??# #?? | | ??????????????????????# #??# #?? | | ??????????????????????# #??# #?? | | ??????????????????????# #### #?? | | ??????????????????????# ""## #?? | | ??????????????????????# Y"?# #?? | | ??????????????????????# "??# #?? | | ??????????????????????# #??# #?? | | ??????????????????????# #??# #?? | | ?????????????###??????# ##?# #?? | | ???????????###%######?# @Y#?# #?? | | ???????????# #?# ##?# #?? | | ???????????# #?# ########+##?? | | ???????????# #?# #??? | | ???????????# #?# #??? | | ???????????# ### #??? | | #######????# ##T #??? | | #????# ### #######??? | | ###### #?# #????????? | | ##T"## #?# #????????? | | ## "####+##+##### ####????????? | | % r #???????????? | | ##+##+######## ######+#######??????? | | # % #??# # #??????? | | # #??# # #??????? | | #% #??# # ! #??????? | | + % #??# # #??????? | | # #??# # #??????? | | % #??# # | ! ! #??????? | | # #### # #??????? | | % + + !! #??????? | | ##############+#### #??????? | | ??# #?# #??????? | | ??# #?# % #??????? | | ??# !### %#??????? | +----------------------------------------------------+ Best States ------------- Heat Dissipation 25 Energy Generation 14 Energy Capacity 250 Matter Stores 300 Matter Capacity 300 Sight Range 16 Terrain Scan Density 10 Armor Coverage 150 Evasion (%) 55 Recoil Reduction 2 Item Schematics ----------------- None Robot Schematics ------------------ None Fabricated ------------ Nothing Alien Tech Used ----------------- None Achievements -------------- None Challenges ------------ None Game ------ Seed SiegeDamperShredder Manual? 0 Play Time 00:29:45 Cumulative 74.4 hours Start 2024.05.17 @ 18:50:11 End 2024.05.17 @ 19:16:11 Sessions 1 Manual Loads 0 Difficulty Rogue Special Mode None Game No. 114 Rogue 114 Adventurer 0 Explorer 0 Win Type - Total 1 Types 1/0/0/0/0/0/0/0/0 Lore% 37 Gallery% 42 Achievement% 31 Wizard Run 0 Options --------- Layout 1 ASCII 0 Keyboard 1 Movement Numpad Keybinds 0 Fullscreen 1 Font 24/Smallcaps Map View 50x35 Zoom Use 0% Tactical HUD 1 Map Filters NONE Filters NONE Steam 1 RUN: b4ef0c75-22f6-42e9-a42d-16e452c0942b